bitfinex/quotes_BTCUSD_20240620
["timestamp","ask_amount","ask_price","bid_price","bid_amount"]
[1718898424392,0.27333555,65116.0,65115.0,0.010493]
[1718898424593,0.61431778,65116.0,65115.0,0.010493]
[1718898424797,0.5395,65116.0,65115.0,0.010493]
[1718898425004,0.63125704,65116.0,65115.0,0.009493]
[1718898425204,0.61913,65116.0,65115.0,0.010493]
[1718898425407,0.62413,65116.0,65115.0,0.010493]
[1718898425612,1.09138742,65116.0,65115.0,0.010493]
[1718898425811,1.22139112,65116.0,65115.0,0.009493]
[1718898426030,0.02,65104.0,65103.0,0.00948199]
[1718898426228,0.2069,65104.0,65103.0,0.00948199]
[1718898426429,0.25513073,65104.0,65103.0,0.00948199]
[1718898426810,0.2069,65104.0,65103.0,0.00948199]
[1718898427432,0.59956112,65104.0,65103.0,0.00948199]
[1718898427652,0.66839238,65104.0,65103.0,0.00948199]
[1718898427836,0.91427989,65104.0,65103.0,0.00948199]
[1718898428044,0.71427989,65104.0,65103.0,0.00948199]
[1718898428257,0.50737989,65104.0,65103.0,0.00948199]
[1718898428463,0.2069,65104.0,65103.0,0.00948199]
[1718898428667,0.2149,65104.0,65103.0,0.01048199]
[1718898429075,0.2069,65104.0,65103.0,0.00948199]
[1718898429282,0.31613565,65104.0,65103.0,0.00948199]
[1718898429484,0.31613565,65104.0,65103.0,0.01048199]
[1718898429485,0.32413565,65104.0,65103.0,0.01048199]
[1718898429690,0.47669677,65104.0,65103.0,0.01048199]
[1718898430326,0.5911,65100.0,65099.0,0.009493]
[1718898430524,0.5911,65100.0,65085.0,0.009493]
[1718898430525,0.02,65094.0,65085.0,0.009493]
[1718898430735,0.02,65092.0,65085.0,0.009493]
[1718898430941,0.13831728,65092.0,65085.0,0.009493]
[1718898431562,0.2908784,65092.0,65085.0,0.009493]
[1718898432774,0.1869,65092.0,65085.0,0.009493]
[1718898432968,0.3469,65100.0,65087.0,0.2479]
[1718898432969,0.1,65100.0,65087.0,0.2479]
[1718898433168,0.03273425,65104.0,65093.0,0.07628172]
[1718898433376,0.10086,65115.0,65093.0,0.07628172]
[1718898433377,0.02,65110.0,65100.0,0.07628172]
[1718898433716,0.1869,65105.0,65101.0,0.2479]
[1718898434191,0.01695215,65110.0,65102.0,0.00823322]
[1718898434333,0.18776,65115.0,65107.0,0.07628172]
[1718898434739,0.1869,65110.0,65108.0,0.00818192]
[1718898435188,0.1869,65110.0,65101.0,0.2479]
[1718898435566,0.018776,65114.0,65109.0,0.00817337]
[1718898435815,0.0244284,65115.0,65107.0,0.07628172]
[1718898436105,0.0244284,65115.0,65110.0,0.00816483]
[1718898436308,0.0244284,65115.0,65101.0,0.2479]
[1718898436514,0.0244284,65115.0,65111.0,0.00815628]
[1718898436716,0.0244284,65115.0,65101.0,0.2479]
[1718898436717,0.02785284,65114.0,65101.0,0.2479]
[1718898436915,0.03085284,65114.0,65101.0,0.2479]
[1718898437124,0.2541,65108.0,65102.0,0.00823322]
[1718898437368,0.02,65105.0,65102.0,0.00823322]
[1718898437507,0.02,65105.0,65096.0,0.2483]
[1718898437913,0.02,65105.0,65097.0,0.00827598]
[1718898437914,0.02,65103.0,65097.0,0.00827598]
[1718898438121,0.15256112,65105.0,65097.0,0.00827598]
[1718898438122,0.02,65099.0,65097.0,0.00827598]
[1718898438337,0.02,65099.0,65091.0,0.000946]
[1718898438338,0.02,65098.0,65091.0,0.000946]
[1718898438582,0.15256112,65099.0,65091.0,0.000946]
[1718898438583,0.2341,65094.0,65091.0,0.000946]
[1718898438790,0.2541,65094.0,65091.0,0.000946]
[1718898439004,0.02,65092.0,65091.0,0.000946]
[1718898439916,0.3041,65093.0,65091.0,0.000946]
[1718898440399,0.002,65092.0,65091.0,0.000946]
[1718898440529,0.007,65092.0,65091.0,0.001946]
[1718898440878,0.07677611,65092.0,65091.0,0.001946]
[1718898441141,0.08077611,65092.0,65091.0,0.001946]
[1718898441307,0.07577611,65092.0,65091.0,0.000946]
[1718898441954,0.06084297,65092.0,65091.0,0.000946]
[1718898442513,0.23340409,65092.0,65091.0,0.000946]
[1718898443138,0.23340409,65092.0,65091.0,0.001946]
[1718898443384,0.48000409,65092.0,65091.0,0.001946]
[1718898443689,0.48000409,65092.0,65091.0,0.000946]
[1718898444289,0.48300409,65092.0,65091.0,0.001946]
[1718898444911,0.47600409,65092.0,65091.0,0.000946]
[1718898445231,0.69000409,65092.0,65091.0,0.000946]
[1718898445968,0.49000409,65092.0,65091.0,0.000946]
[1718898446173,0.63811,65092.0,65091.0,0.000946]
[1718898446404,0.3,65091.0,65090.0,0.00646915]
[1718898446557,0.65256112,65091.0,65090.0,0.00646915]
[1718898447674,0.66656112,65091.0,65090.0,0.00646915]
[1718898447866,0.80511526,65091.0,65090.0,0.00646915]
[1718898448298,0.1,65083.0,65076.0,0.00948199]
[1718898448451,0.2341,65077.0,65076.0,0.00948199]
[1718898448652,0.38666112,65077.0,65076.0,0.00948199]
[1718898448857,0.2341,65077.0,65076.0,0.00948199]
[1718898450903,0.2381,65077.0,65076.0,0.00948199]
[1718898451588,0.26191,65077.0,65076.0,0.00948199]
[1718898452021,0.26791,65077.0,65076.0,0.00948199]
[1718898452224,0.42047112,65077.0,65076.0,0.00948199]
[1718898453293,0.41647112,65077.0,65076.0,0.00948199]
[1718898453433,0.42647112,65077.0,65076.0,0.00948199]
[1718898454060,0.42047112,65077.0,65076.0,0.00948199]
[1718898454665,0.43247112,65077.0,65076.0,0.00948199]
[1718898455345,0.42047112,65077.0,65076.0,0.00948199]
[1718898455496,0.37397112,65077.0,65076.0,0.00948199]
[1718898455697,0.38497112,65077.0,65076.0,0.00948199]
[1718898456894,0.37497112,65077.0,65076.0,0.00948199]
[1718898457093,0.38897112,65077.0,65076.0,0.00948199]
[1718898457304,0.36516112,65077.0,65076.0,0.00948199]
[1718898457524,0.2126,65077.0,65076.0,0.00948199]
[1718898458319,0.2016,65077.0,65076.0,0.00948199]
[1718898458807,0.2156,65077.0,65076.0,0.00948199]
[1718898458982,0.26354,65077.0,65076.0,0.00948199]
[1718898459401,0.028,65077.0,65076.0,0.00948199]
[1718898459616,0.028,65077.0,65076.0,0.27098199]
[1718898459807,0.02794683,65077.0,65076.0,0.27098199]
[1718898460057,0.02794683,65077.0,65076.0,0.27943761]
[1718898460266,0.02794683,65077.0,65076.0,0.37571933]
[1718898460498,0.014,65077.0,65076.0,0.37571933]
[1718898461526,0.02304867,65085.0,65080.0,0.02]
[1718898461776,0.1,65100.0,65076.0,0.35571933]
[1718898461777,0.04583568,65103.0,65085.0,0.02]
[1718898461981,0.1876,65096.0,65090.0,0.09628172]
[1718898462194,0.15256112,65102.0,65091.0,0.02]
[1718898462394,0.1876,65098.0,65091.0,0.00832729]
[1718898462836,0.1876,65098.0,65089.0,0.02]
[1718898463037,0.1876,65098.0,65083.0,0.62088172]
[1718898463038,0.1876,65098.0,65090.0,0.02]
[1718898463216,0.1876,65098.0,65092.0,0.00831874]
[1718898463429,0.1876,65098.0,65090.0,0.02]
[1718898463630,0.00086,65092.0,65090.0,0.02]
[1718898464185,0.00086,65092.0,65091.0,0.09628172]
[1718898464407,0.00086,65092.0,65091.0,0.82054284]
[1718898464609,0.00086,65092.0,65091.0,0.85187013]
[1718898466207,0.00186,65092.0,65091.0,0.85487013]
[1718898466943,0.00286,65092.0,65091.0,0.85687013]
[1718898468521,0.00286,65092.0,65091.0,0.68130901]
[1718898469309,0.00286,65092.0,65091.0,0.01332729]
[1718898469516,0.19046,65092.0,65091.0,0.01332729]
[1718898470492,0.18946,65092.0,65091.0,0.01132729]
[1718898470648,0.208506,65092.0,65091.0,0.01332729]
[1718898470853,0.208506,65092.0,65091.0,0.01132729]
[1718898471052,0.2326016,65092.0,65091.0,0.003]
[1718898471275,0.2326016,65092.0,65091.0,0.005]
[1718898471680,0.2316016,65092.0,65079.0,0.2621]
[1718898471887,0.1876,65085.0,65078.0,0.02]
[1718898472046,0.1876,65085.0,65080.0,0.0084214]
[1718898472248,0.1876,65085.0,65077.0,0.3026]
[1718898472450,0.1876,65085.0,65081.0,0.00841284]
[1718898472823,0.1876,65085.0,65074.0,0.2696]
[1718898473038,0.1876,65080.0,65076.0,0.00948199]
[1718898473251,0.1876,65080.0,65077.0,0.00844707]
[1718898473655,0.26481,65080.0,65077.0,0.00844707]
[1718898473858,0.26481,65080.0,65076.0,0.00948199]
[1718898474254,0.26481,65080.0,65077.0,0.07628172]
[1718898475038,0.1906,65080.0,65077.0,0.07628172]
[1718898475459,0.2584,65090.0,65077.0,0.07628172]
[1718898475660,0.003,65080.0,65077.0,0.07628172]
[1718898476073,0.003,65080.0,65078.0,0.00843851]
[1718898476457,0.003,65080.0,65076.0,0.00948199]
[1718898476458,0.1876,65079.0,65076.0,0.00948199]
[1718898476658,0.2551,65077.0,65076.0,0.00948199]
[1718898476864,0.40766112,65077.0,65076.0,0.00948199]
[1718898478905,0.41166112,65077.0,65076.0,0.00948199]
[1718898479519,0.64616112,65077.0,65076.0,0.00948199]
[1718898480243,0.84616112,65077.0,65076.0,0.00948199]
[1718898480426,0.77677884,65077.0,65076.0,0.00948199]
[1718898480639,0.16256112,65077.0,65076.0,0.00948199]
[1718898480844,0.16256112,65077.0,65076.0,0.01793761]
[1718898480845,0.01,65077.0,65076.0,0.01793761]
[1718898481290,0.004,65077.0,65076.0,0.01793761]
[1718898481838,0.014,65077.0,65076.0,0.01793761]
[1718898482038,0.023,65077.0,65076.0,0.09421933]
[1718898482353,0.014,65077.0,65076.0,0.09421933]
[1718898482893,0.014,65077.0,65076.0,0.11421933]
[1718898483733,0.04593449,65086.0,65076.0,0.11421933]
[1718898483960,0.04596046,65086.0,65085.0,0.2666]
[1718898484179,0.04596046,65086.0,65085.0,0.2466]
[1718898484411,0.0689407,65087.0,65085.0,0.25497862]
[1718898484703,0.0689407,65086.0,65085.0,0.25497862]
[1718898484903,0.04522743,65087.0,65086.0,0.02]
[1718898485132,0.13985677,65092.0,65089.0,0.02]
[1718898485133,0.0249556,65092.0,65089.0,0.02]
[1718898485547,0.0249556,65092.0,65085.0,0.33126034]
[1718898485548,0.0249556,65092.0,65091.0,0.02]
[1718898485799,0.00086,65092.0,65091.0,0.02]
[1718898486039,0.00086,65092.0,65091.0,0.02832729]
[1718898486794,0.00086,65092.0,65091.0,0.29382729]
[1718898487036,0.00086,65092.0,65091.0,0.34254313]
[1718898487243,0.01186,65092.0,65091.0,0.66304313]
[1718898487662,0.01186,65092.0,65091.0,0.61432729]
[1718898487663,0.00086,65092.0,65091.0,0.61432729]
[1718898487998,0.00186,65092.0,65091.0,0.61532729]
[1718898488197,0.00086,65092.0,65091.0,0.61432729]
[1718898488658,0.00086,65092.0,65091.0,0.02932729]
[1718898488659,0.00186,65092.0,65091.0,0.02932729]
[1718898488857,0.00186,65092.0,65091.0,0.00932729]
[1718898489207,0.00186,65092.0,65091.0,0.02932729]
[1718898489416,0.00286,65092.0,65091.0,0.02932729]
[1718898490034,0.00286,65092.0,65091.0,0.20488841]
[1718898490678,0.00286,65092.0,65091.0,0.20388841]
[1718898490679,0.00186,65092.0,65091.0,0.20388841]
[1718898491098,0.00186,65092.0,65091.0,0.21488841]
[1718898491307,0.00186,65092.0,65091.0,0.86728841]
[1718898491512,0.00186,65092.0,65091.0,1.06928841]
[1718898491714,0.00086,65092.0,65091.0,1.06928841]
[1718898491924,0.00086,65092.0,65091.0,0.86728841]
[1718898492148,0.00186,65092.0,65091.0,1.07028841]
[1718898493233,0.00286,65092.0,65091.0,1.07028841]
[1718898493593,0.00286,65092.0,65091.0,0.85828841]
[1718898494295,0.00286,65092.0,65091.0,0.86828841]
[1718898495496,0.00286,65092.0,65091.0,0.85828841]
[1718898496773,0.00286,65092.0,65091.0,0.86828841]
[1718898496985,0.00286,65092.0,65091.0,0.85828841]
[1718898497395,0.00286,65092.0,65091.0,0.58272729]
[1718898497592,0.00286,65092.0,65091.0,0.27412729]
[1718898497889,0.00286,65092.0,65091.0,0.02932729]
[1718898498125,0.00286,65092.0,65091.0,0.00932729]
[1718898498274,0.00286,65092.0,65091.0,0.001]
[1718898498476,0.00086,65092.0,65090.0,0.02]
[1718898498681,0.00086,65092.0,65091.0,0.00832729]
[1718898498890,0.00186,65092.0,65088.0,0.02]
[1718898499081,0.00186,65092.0,65091.0,0.00832729]
[1718898499304,0.00286,65092.0,65091.0,0.001]
[1718898499506,0.00186,65092.0,65091.0,0.001]
[1718898499911,0.33476,65092.0,65091.0,0.001]
[1718898500092,0.393946,65092.0,65091.0,0.001]
[1718898500495,0.393946,65092.0,65072.0,0.0151]
[1718898500698,0.393946,65092.0,64980.0,1.36402486]
[1718898500699,0.393946,65092.0,65064.0,0.009493]
[1718898500700,0.4298,65080.0,65064.0,0.009493]
[1718898500899,0.0458895,65071.0,65064.0,0.009493]
[1718898501096,0.0458895,65075.0,65064.0,0.009493]
[1718898501305,0.4298,65080.0,65064.0,0.009493]
[1718898502330,0.014,65075.0,65064.0,0.009493]
[1718898502544,0.4298,65080.0,65064.0,0.009493]
[1718898503125,0.08907838,65080.0,65068.0,0.07628172]
[1718898503388,0.02329214,65085.0,65069.0,0.15256112]
[1718898503576,0.02329214,65085.0,65070.0,0.023]
[1718898503789,0.45769034,65088.0,65071.0,0.71716112]
[1718898503994,0.11469643,65088.0,65071.0,0.71716112]
[1718898504488,0.014,65075.0,65071.0,0.71716112]
[1718898504704,0.014,65075.0,65071.0,0.15256112]
[1718898504916,0.014,65075.0,65064.0,0.250193]
[1718898505119,0.014,65075.0,65064.0,0.40275412]
[1718898505735,0.014,65075.0,65064.0,0.009493]
[1718898507087,0.028,65075.0,65064.0,0.009493]
[1718898507508,0.014,65075.0,65064.0,0.009493]
[1718898507706,0.011,65075.0,65064.0,0.009493]
[1718898507916,0.011,65075.0,65065.0,0.07628172]
[1718898508145,0.04589488,65085.0,65065.0,0.07628172]
[1718898508344,0.014,65075.0,65065.0,0.07628172]
[1718898508632,0.26617346,65084.0,65064.0,0.009493]
[1718898508829,0.02,65082.0,65064.0,0.009493]
[1718898509032,0.01,65075.0,65064.0,0.009493]
[1718898509234,0.2345,65067.0,65064.0,0.009493]
[1718898509439,0.02,65065.0,65064.0,0.009493]
[1718898509872,0.21958688,65065.0,65064.0,0.009493]
[1718898510077,0.173692,65065.0,65064.0,0.009493]
[1718898510339,0.173694,65064.0,65049.0,0.009493]
[1718898510569,0.61461125,65064.0,65049.0,0.009493]
[1718898510786,0.89499154,65064.0,65049.0,0.009493]
[1718898510998,0.91793168,65064.0,65049.0,0.009493]
[1718898511162,0.84911125,65064.0,65049.0,0.009493]
[1718898511591,0.89497522,65064.0,65049.0,0.009493]
[1718898511988,0.90897522,65064.0,65049.0,0.009493]
[1718898512245,0.86311125,65064.0,65049.0,0.009493]
[1718898513650,0.87711125,65064.0,65049.0,0.009493]
[1718898514375,1.44871125,65064.0,65049.0,0.009493]
[1718898514575,1.44871125,65064.0,65063.0,0.67569666]
[1718898514576,1.69456028,65064.0,65063.0,0.67569666]
[1718898514733,1.64871125,65064.0,65063.0,0.67569666]
[1718898514902,1.7174848,65064.0,65063.0,0.67569666]
[1718898515106,1.8174848,65064.0,65063.0,0.52015464]
[1718898515306,1.8174848,65064.0,65049.0,0.009493]
[1718898515307,0.945527,65050.0,65049.0,0.009493]
[1718898515688,1.33258812,65050.0,65049.0,0.009493]
[1718898516463,0.02,65039.0,65036.0,0.7]
[1718898516708,0.2345,65039.0,65036.0,0.7]
[1718898518310,0.2485,65039.0,65036.0,0.7]
[1718898518532,0.02,65038.0,65036.0,0.7]
[1718898518709,0.2825,65039.0,65036.0,0.7]
[1718898519057,0.2685,65039.0,65036.0,0.7]
[1718898519460,0.02,65038.0,65036.0,0.7]
[1718898519664,0.04885,65038.0,65036.0,0.7]
[1718898520287,0.02885,65038.0,65036.0,0.7]
[1718898521133,0.04285,65038.0,65036.0,0.7]
[1718898521698,0.07685,65038.0,65036.0,0.7]
[1718898522421,0.06285,65038.0,65036.0,0.7]
[1718898523245,0.02,65037.0,65036.0,0.7]
[1718898523481,0.22229612,65037.0,65036.0,0.7]
[1718898524527,0.23629612,65037.0,65036.0,0.7]
[1718898525371,0.45029612,65037.0,65036.0,0.7]
[1718898525724,0.25029612,65037.0,65036.0,0.7]
[1718898526121,0.45029612,65037.0,65036.0,0.7]
[1718898526344,0.43629612,65037.0,65036.0,0.7]
[1718898526583,0.23629612,65037.0,65036.0,0.7]
[1718898527396,0.25029612,65037.0,65036.0,0.7]
[1718898527985,0.43629612,65037.0,65036.0,0.7]
[1718898528202,0.43629612,65037.0,65036.0,0.11693075]
[1718898528203,0.65029612,65037.0,65036.0,0.11693075]
[1718898528435,0.63629612,65037.0,65036.0,0.03362044]
[1718898528803,0.62229612,65037.0,65036.0,0.03362044]
[1718898529130,0.63629612,65037.0,65036.0,0.03362044]
[1718898529333,0.02,65037.0,65036.0,0.03362044]
[1718898529543,0.034,65037.0,65036.0,0.03362044]
[1718898530710,0.048,65037.0,65036.0,0.03362044]
[1718898531134,0.034,65037.0,65036.0,0.03362044]
[1718898532099,0.048,65037.0,65036.0,0.03362044]
[1718898532328,0.08508147,65037.0,65036.0,0.03362044]
[1718898532660,0.28508147,65037.0,65036.0,0.03362044]
[1718898533314,0.08508147,65037.0,65036.0,0.03362044]
[1718898533762,0.06508147,65037.0,65036.0,0.03362044]
[1718898533967,0.028,65037.0,65036.0,0.03362044]
[1718898535475,0.028,65037.0,65036.0,0.28862044]
[1718898536108,0.014,65037.0,65036.0,0.28862044]
[1718898536740,0.028,65037.0,65036.0,0.28862044]
[1718898536947,0.014,65037.0,65036.0,0.28862044]
[1718898538498,0.014,65037.0,65036.0,0.41643557]
[1718898538499,0.028,65037.0,65036.0,0.41643557]
[1718898538905,0.014,65037.0,65036.0,0.41643557]
[1718898539043,0.013,65037.0,65036.0,0.41643557]
[1718898539487,0.027,65037.0,65036.0,0.41643557]
[1718898540284,0.027,65037.0,65036.0,0.49271729]
[1718898540495,0.027,65037.0,65036.0,0.51746328]
[1718898540669,0.027,65037.0,65036.0,0.64527363]
[1718898541525,0.014,65037.0,65036.0,0.64527363]
[1718898541925,0.019,65037.0,65036.0,0.64527363]
[1718898542128,0.014,65037.0,65036.0,0.41643079]
[1718898542512,0.016,65037.0,65036.0,0.41643079]
[1718898542714,0.002,65037.0,65036.0,0.41643079]
[1718898542893,0.009,65037.0,65036.0,0.41643079]
[1718898543519,0.002,65037.0,65036.0,0.41642826]
[1718898543966,0.006,65037.0,65036.0,0.41642826]
[1718898545010,0.006,65037.0,65036.0,0.6452711]
[1718898545233,0.006,65037.0,65036.0,1.19445732]
[1718898545460,0.006,65037.0,65036.0,1.39445732]
[1718898545914,0.14221909,65055.0,65039.0,0.02]
[1718898546167,0.14221909,65055.0,65037.0,0.2617]
[1718898546168,0.14221909,65055.0,65042.0,0.0184526]
[1718898546364,0.02,65066.0,65043.0,0.28036894]
[1718898546365,0.02,65060.0,65043.0,0.28036894]
[1718898546571,0.02,65060.0,65043.0,0.15256112]
[1718898546776,0.02,65060.0,65037.0,0.2617]
[1718898546777,0.3234,65056.0,65044.0,0.12779133]
[1718898546976,0.3234,65056.0,65045.0,0.12779133]
[1718898547187,0.2423,65055.0,65046.0,0.12779133]
[1718898547335,0.29244111,65055.0,65047.0,0.12779133]
[1718898547535,0.29244111,65055.0,65037.0,0.33798172]
[1718898547768,0.02,65052.0,65038.0,0.12779698]
[1718898547976,0.02,65050.0,65036.0,0.03462044]
[1718898548311,0.02,65047.0,65036.0,0.03362044]
[1718898548513,0.02,65045.0,65036.0,0.03362044]
[1718898548908,0.02,65044.0,65036.0,0.03362044]
[1718898549082,0.26558411,65051.0,65036.0,0.03362044]
[1718898549083,0.02,65048.0,65039.0,0.001]
[1718898549443,0.03200841,65047.0,65039.0,0.001]
[1718898549652,0.02,65046.0,65039.0,0.001]
[1718898549856,0.03200841,65047.0,65036.0,0.02694044]
[1718898549857,0.2568,65043.0,65036.0,0.02694044]
[1718898550060,0.25672101,65043.0,65036.0,0.02694044]
[1718898550275,0.27672101,65043.0,65036.0,0.02694044]
[1718898550481,0.25672101,65043.0,65036.0,0.02694044]
[1718898550888,0.02,65040.0,65036.0,0.02794044]
[1718898551555,0.02,65038.0,65036.0,0.02694044]
[1718898551772,0.02,65038.0,65036.0,0.02794044]
[1718898551982,0.02,65039.0,65036.0,0.02794044]
[1718898552200,0.11203724,65042.0,65036.0,0.02794044]
[1718898552350,0.02,65040.0,65036.0,0.02694044]
[1718898552961,0.02,65039.0,65036.0,0.02694044]
[1718898553325,0.02,65037.0,65036.0,0.02694044]
[1718898553778,0.02,65038.0,65036.0,0.02694044]
[1718898554392,0.03797583,65039.0,65036.0,0.02694044]
[1718898554797,0.02,65037.0,65036.0,0.02694044]
[1718898554961,0.03154758,65037.0,65036.0,0.02694044]
[1718898555160,0.03854758,65037.0,65036.0,0.02694044]
[1718898555614,0.03154758,65037.0,65036.0,0.02694044]
[1718898556418,0.35454758,65037.0,65036.0,0.02694044]
[1718898556618,0.36154758,65037.0,65036.0,0.02694044]
[1718898557514,0.54934758,65037.0,65036.0,0.02694044]
[1718898557916,0.55734758,65037.0,65036.0,0.02694044]
[1718898558120,0.81937482,65037.0,65036.0,0.02694044]
[1718898558322,0.9029087,65037.0,65036.0,0.02694044]
[1718898558522,0.9089087,65037.0,65036.0,0.02694044]
[1718898558969,0.9229087,65037.0,65036.0,0.02694044]
[1718898560443,0.7229087,65037.0,65036.0,0.02694044]
[1718898561310,0.5188,65037.0,65036.0,0.02694044]
[1718898562068,0.63389342,65037.0,65036.0,0.02694044]
[1718898562270,0.5388,65037.0,65036.0,0.02694044]
[1718898562513,0.69136112,65037.0,65036.0,0.02694044]
[1718898563393,0.331,65037.0,65036.0,0.02694044]
[1718898563607,0.12006585,65037.0,65036.0,0.02694044]
[1718898563831,0.028,65037.0,65036.0,0.02694044]
[1718898564264,0.028,65037.0,65036.0,0.17950156]
[1718898564461,0.028,65037.0,65036.0,0.75940156]
[1718898564996,0.014,65037.0,65036.0,0.75940156]
[1718898565622,0.018,65037.0,65036.0,0.75940156]
[1718898565830,0.004,65037.0,65036.0,0.75940156]
[1718898566114,0.04602056,65048.0,65036.0,0.75940156]
[1718898566345,0.04602056,65049.0,65039.0,0.07628172]
[1718898566553,0.04602056,65050.0,65040.0,0.15256112]
[1718898566760,0.11615243,65054.0,65040.0,0.15256112]
[1718898566761,0.04602056,65049.0,65040.0,0.15256112]
[1718898567389,0.27984113,65053.0,65040.0,0.15256112]
[1718898567390,0.04602056,65050.0,65040.0,0.15256112]
[1718898568046,0.04602056,65049.0,65040.0,0.15256112]
[1718898568463,0.014,65048.0,65040.0,0.15256112]
[1718898569125,0.04602056,65049.0,65040.0,0.15256112]
[1718898569331,0.014,65049.0,65040.0,0.15256112]
[1718898569742,0.014,65048.0,65040.0,0.15256112]
[1718898570067,0.04602056,65049.0,65040.0,0.15256112]
[1718898570488,0.04599572,65049.0,65040.0,0.15256112]
[1718898570838,0.014,65048.0,65040.0,0.15256112]
[1718898572260,0.028,65048.0,65040.0,0.15256112]
[1718898573098,0.014,65048.0,65040.0,0.15256112]
[1718898574012,0.01429801,65047.0,65036.0,0.60684044]
[1718898574223,0.26179205,65048.0,65037.0,0.15256112]
[1718898574656,0.04599205,65047.0,65037.0,0.15256112]
[1718898574888,0.04599205,65047.0,65036.0,0.02694044]
[1718898574889,0.1878,65038.0,65036.0,0.02694044]
[1718898575527,0.04599205,65038.0,65036.0,0.02694044]
[1718898575944,0.04599205,65039.0,65036.0,0.02694044]
[1718898576149,0.05999205,65038.0,65036.0,0.02694044]
[1718898576563,0.04601994,65038.0,65036.0,0.02694044]
[1718898576769,0.05601994,65038.0,65036.0,0.02694044]
[1718898577833,0.02170897,65037.0,65036.0,0.02694044]
[1718898578047,0.11203988,65037.0,65036.0,0.02694044]
[1718898578252,0.13504985,65037.0,65036.0,0.02694044]
[1718898578460,0.021,65038.0,65036.0,0.02694044]
[1718898578868,0.03,65038.0,65036.0,0.02694044]
[1718898579074,0.1878,65039.0,65036.0,0.02694044]
[1718898579075,0.033,65037.0,65036.0,0.02694044]
[1718898579464,0.047,65037.0,65036.0,0.02694044]
[1718898579667,0.07029059,65037.0,65036.0,0.02694044]
[1718898580195,0.013,65037.0,65036.0,0.02694044]
[1718898580622,0.033,65037.0,65036.0,0.02694044]
[1718898580856,0.02,65037.0,65036.0,0.02694044]
[1718898581069,0.75146112,65037.0,65036.0,0.02694044]
[1718898581284,0.5989,65037.0,65036.0,0.02694044]
[1718898581516,0.68037,65037.0,65036.0,0.02694044]
[1718898581939,0.67437,65037.0,65036.0,0.02694044]
[1718898582154,0.028,65037.0,65036.0,0.02694044]
[1718898582580,0.12006098,65037.0,65036.0,0.02694044]
[1718898582796,0.028,65037.0,65036.0,0.02694044]
[1718898583651,0.028,65037.0,65036.0,0.17950156]
[1718898583855,0.028,65037.0,65036.0,0.47960156]
[1718898584103,0.014,65037.0,65036.0,0.50260156]
[1718898584514,0.018,65037.0,65036.0,0.79656172]
[1718898585161,0.014,65037.0,65036.0,0.79656172]
[1718898585372,0.09206098,65048.0,65036.0,0.81656172]
[1718898585373,0.04601712,65048.0,65036.0,0.81656172]
[1718898585602,0.04601701,65049.0,65037.0,0.17556112]
[1718898585836,0.04601701,65050.0,65037.0,0.17556112]
[1718898586289,0.04601701,65051.0,65037.0,0.17556112]
[1718898586514,0.04601701,65051.0,65037.0,0.25184284]
[1718898586717,0.04601701,65051.0,65038.0,0.02]
[1718898586922,0.01,65049.0,65039.0,0.17556112]
[1718898587157,0.09289403,65055.0,65039.0,0.17556112]
[1718898587158,0.00086,65055.0,65045.0,0.5725]
[1718898587367,0.00086,65055.0,65051.0,0.07628172]
[1718898587574,0.00086,65055.0,65053.0,0.3075]
[1718898587768,0.00086,65055.0,65054.0,0.15256112]
[1718898588491,0.00086,65055.0,65054.0,0.17556112]
[1718898588914,0.00086,65055.0,65054.0,0.17656112]
[1718898589853,0.00186,65055.0,65054.0,0.17856112]
[1718898593873,0.00186,65055.0,65054.0,0.003]
[1718898594916,0.00186,65055.0,65054.0,0.002]
[1718898595423,0.00386,65055.0,65045.0,0.2415]
[1718898595626,0.00386,65055.0,65046.0,0.15256112]
[1718898595627,0.00486,65055.0,65046.0,0.15256112]
[1718898596037,0.00186,65055.0,65040.0,0.1]
[1718898596236,0.00186,65055.0,65041.0,0.15256112]
[1718898596439,0.00286,65055.0,65041.0,0.15256112]
[1718898596841,0.00586,65055.0,65041.0,0.15256112]
[1718898597188,0.00286,65055.0,65041.0,0.15256112]
[1718898598026,0.05561844,65054.0,65041.0,0.15256112]
[1718898598245,0.00086,65055.0,65041.0,0.15256112]
[1718898598408,0.00386,65055.0,65041.0,0.15256112]
[1718898598612,0.00786,65055.0,65041.0,0.15256112]
[1718898599041,0.00386,65055.0,65041.0,0.15256112]
[1718898599484,0.00786,65055.0,65041.0,0.15256112]
[1718898599681,0.00786,65055.0,65044.0,0.07628172]
[1718898600143,0.06300709,65054.0,65044.0,0.07628172]
[1718898600336,0.00786,65055.0,65044.0,0.07628172]
[1718898600541,0.00786,65055.0,65045.0,0.17556112]
[1718898600920,0.00786,65055.0,65039.0,0.9315]
[1718898601121,0.00786,65055.0,65034.0,0.2495]
[1718898601122,0.3023,65049.0,65034.0,0.2495]
[1718898601319,0.1878,65045.0,65036.0,0.17950156]
[1718898601742,0.1878,65045.0,65036.0,0.02694044]
[1718898602126,0.29792435,65044.0,65036.0,0.02694044]
[1718898602510,0.252,65044.0,65037.0,0.07628172]
[1718898602646,0.04592435,65045.0,65037.0,0.07628172]
[1718898602647,0.004,65045.0,65037.0,0.07628172]
[1718898603121,0.04592435,65048.0,65037.0,0.07628172]
[1718898603355,0.5611,65049.0,65039.0,0.2485]
[1718898603356,0.04592435,65049.0,65039.0,0.2485]
[1718898603488,0.5589,65054.0,65044.0,0.07628172]
[1718898603489,0.04594309,65054.0,65044.0,0.07628172]
[1718898603699,0.00086,65055.0,65045.0,0.17556112]
[1718898604106,0.00086,65055.0,65051.0,0.07628172]
[1718898604328,0.00086,65055.0,65053.0,0.2593]
[1718898604526,0.00086,65055.0,65053.0,0.41186112]
[1718898605400,0.00086,65055.0,65053.0,0.15256112]
[1718898605608,0.00086,65055.0,65048.0,0.24]
[1718898605837,0.00086,65055.0,65049.0,0.15256112]
[1718898606669,0.00086,65055.0,65044.0,0.2475]
[1718898606844,0.00086,65055.0,65045.0,0.15256112]
[1718898607087,0.00086,65055.0,65045.0,0.22884284]